bitfinex/quotes_SOLUSD_20230105
["timestamp","ask_amount","ask_price","bid_price","bid_amount"]
[1672948031969,93.22,13.348,13.34,19.23]
[1672948034776,73.22,13.348,13.34,19.23]
[1672948036692,17.0,13.348,13.34,19.23]
[1672948036902,73.22,13.348,13.34,19.23]
[1672948039741,20.0,13.347,13.34,8.23]
[1672948041617,73.22,13.348,13.34,8.23]
[1672948043834,20.0,13.347,13.34,8.23]
[1672948044042,17.0,13.346,13.34,8.23]
[1672948044569,73.23,13.346,13.34,8.23]
[1672948044765,17.0,13.346,13.34,8.23]
[1672948045930,37.0,13.347,13.34,8.23]
[1672948046361,17.0,13.347,13.34,8.23]
[1672948047601,37.0,13.347,13.34,8.23]
[1672948048358,17.0,13.347,13.34,8.23]
[1672948049410,17.0,13.347,13.34,46.26303404]
[1672948049728,17.0,13.347,13.34,8.23]
[1672948051809,37.0,13.347,13.34,8.23]
[1672948055085,37.0,13.347,13.337,38.03303404]
[1672948055397,20.0,13.345,13.337,38.03303404]
[1672948055589,17.0,13.344,13.337,38.03303404]
[1672948056972,37.0,13.345,13.337,38.03303404]
[1672948058134,17.0,13.345,13.337,38.03303404]
[1672948060971,17.0,13.345,13.336,149.77923404]
[1672948061164,17.0,13.345,13.336,38.03303404]
[1672948061376,37.0,13.346,13.336,38.03303404]
[1672948062654,37.0,13.346,13.337,38.03303404]
[1672948062840,20.0,13.344,13.336,38.03303404]
[1672948063051,17.0,13.343,13.336,38.03303404]
[1672948065286,17.0,13.343,13.337,38.03303404]
[1672948067175,17.0,13.343,13.337,20.0]
[1672948067696,17.0,13.343,13.336,38.03303404]
[1672948068419,37.0,13.344,13.336,38.03303404]
[1672948069067,17.0,13.344,13.336,38.03303404]
[1672948070837,17.0,13.344,13.337,38.03303404]
[1672948077689,17.0,13.344,13.338,38.03303404]
[1672948078957,17.0,13.344,13.337,38.03303404]
[1672948081469,17.0,13.343,13.337,38.03303404]
[1672948081682,17.0,13.345,13.337,38.03303404]
[1672948081894,73.23,13.346,13.337,38.03303404]
[1672948083358,95.64737149,13.346,13.337,27.03303404]
[1672948083577,20.0,13.345,13.333,607.59335492]
[1672948083793,20.0,13.345,13.333,530.98029638]
[1672948083794,56.24,13.344,13.333,530.98029638]
[1672948083977,20.0,13.343,13.333,530.98029638]
[1672948084306,20.0,13.341,13.33,19.21]
[1672948084521,56.26,13.34,13.33,19.21]
[1672948084712,20.0,13.339,13.33,19.21]
[1672948085566,17.0,13.338,13.33,19.21]
[1672948086193,17.0,13.339,13.33,19.21]
[1672948087868,17.0,13.339,13.33,95.82305854]
[1672948089043,115.386,13.342,13.33,172.74305854]
[1672948089355,56.24,13.345,13.331,152.91305854]
[1672948089668,56.23,13.346,13.34,19.2]
[1672948090085,56.23,13.347,13.34,19.2]
[1672948090289,56.21,13.351,13.34,19.2]
[1672948090506,56.21,13.351,13.34,8.2]
[1672948090819,20.0,13.347,13.34,8.2]
[1672948091252,56.22,13.348,13.34,8.2]
[1672948092835,37.0,13.347,13.34,8.2]
[1672948093231,17.0,13.347,13.34,8.2]
[1672948108805,17.0,13.347,13.34,27.70974847]
[1672948109763,17.0,13.347,13.34,16.70974847]
[1672948109976,17.0,13.347,13.34,19.23]
[1672948111765,17.0,13.347,13.34,78.42042354]
[1672948112913,56.22,13.348,13.34,174.63520686]
[1672948113109,56.21,13.352,13.34,174.63520686]
[1672948113745,56.21,13.352,13.341,76.25]
[1672948114078,56.21,13.352,13.342,78.54520686]
[1672948114403,56.21,13.352,13.343,19.35478332]
[1672948116392,17.0,13.351,13.343,19.35478332]
[1672948116603,37.0,13.351,13.343,19.35478332]
[1672948117234,17.0,13.351,13.343,19.35478332]
[1672948119649,37.0,13.351,13.342,59.19042354]
[1672948120051,56.22,13.35,13.34,19.18]
[1672948120484,20.0,13.349,13.34,19.18]
[1672948120698,56.22,13.348,13.34,19.18]
[1672948120894,20.0,13.347,13.34,19.18]
[1672948121102,56.23,13.346,13.34,19.18]
[1672948122591,17.0,13.345,13.34,19.18]
[1672948122908,17.0,13.345,13.34,19.13]
[1672948125850,37.0,13.346,13.34,19.13]
[1672948126481,17.0,13.346,13.34,19.13]
[1672948126691,56.23,13.347,13.34,19.13]
[1672948126898,76.22,13.348,13.34,19.13]
[1672948128036,17.0,13.347,13.34,19.13]
[1672948129530,20.0,13.345,13.34,19.13]
[1672948129935,17.0,13.344,13.34,19.13]
[1672948130145,17.0,13.344,13.336,109.9543]
[1672948131218,17.0,13.344,13.337,56.27]
[1672948131527,17.0,13.344,13.336,166.2343]
[1672948132871,20.0,13.344,13.336,109.9543]
[1672948133081,17.0,13.343,13.336,109.9543]
[1672948134031,17.0,13.344,13.336,109.9543]
[1672948136584,17.0,13.344,13.336,164.76805687]
[1672948140350,56.22,13.348,13.336,164.76805687]
[1672948140666,108.2181,13.349,13.341,20.0]
[1672948141077,108.2181,13.349,13.342,56.25]
[1672948141278,108.2181,13.349,13.342,20.0]
[1672948141490,108.2181,13.349,13.341,56.25]
[1672948142980,17.0,13.348,13.341,56.25]
[1672948144777,56.21,13.352,13.341,56.25]
[1672948144976,56.2,13.355,13.342,20.0]
[1672948145288,110.9141,13.356,13.35,19.13]
[1672948147270,17.0,13.355,13.35,19.13]
[1672948147479,110.9141,13.356,13.35,8.13]
[1672948149162,110.9141,13.356,13.35,85.51531021]
[1672948150863,17.0,13.355,13.35,85.51531021]
[1672948153386,56.18,13.358,13.35,85.51531021]
[1672948154771,17.0,13.357,13.35,85.51531021]
[1672948155084,56.19,13.356,13.35,85.51531021]
[1672948155300,17.0,13.355,13.35,85.51531021]
[1672948155707,17.0,13.355,13.35,162.19531021]
[1672948155908,17.0,13.355,13.35,84.81]
[1672948156123,56.18,13.358,13.35,84.81]
[1672948157398,17.0,13.357,13.35,84.81]
[1672948157610,17.0,13.357,13.35,152.11496287]
[1672948160037,17.0,13.358,13.35,152.11496287]
[1672948160428,56.17,13.361,13.35,152.11496287]
[1672948162529,73.18,13.358,13.35,152.11496287]
[1672948163182,17.0,13.358,13.35,152.11496287]
[1672948173486,56.17,13.361,13.35,152.11496287]
[1672948174950,17.0,13.358,13.35,152.11496287]
[1672948176312,17.0,13.358,13.351,545.16241283]
[1672948176727,17.0,13.358,13.351,612.4673757]
[1672948177476,17.0,13.358,13.352,545.15241493]
[1672948177679,17.0,13.358,13.353,20.0]
[1672948177873,17.0,13.358,13.352,612.4573778]
[1672948184597,17.0,13.358,13.352,545.15241493]
[1672948193772,29.961045,13.359,13.352,545.15241493]
[1672948194931,17.0,13.358,13.352,545.15241493]
[1672948201563,29.961045,13.359,13.352,545.15241493]
[1672948203018,17.0,13.358,13.352,545.15241493]
[1672948203858,17.0,13.358,13.352,325.50044693]
[1672948204372,4.961045,13.359,13.352,325.50044693]
[1672948204581,4.961045,13.359,13.353,20.0]
[1672948206259,4.961045,13.359,13.352,392.65903137]
[1672948206914,17.0,13.358,13.352,392.65903137]
[1672948210927,17.0,13.358,13.354,20.0]
[1672948211874,17.0,13.358,13.353,223.72424693]
[1672948213538,17.0,13.358,13.354,20.0]
[1672948214079,17.0,13.358,13.356,20.0]
[1672948215451,17.0,13.358,13.355,349.10214155]
[1672948216279,17.0,13.358,13.352,67.15858444]
[1672948216489,17.0,13.358,13.353,20.0]
[1672948217848,17.0,13.358,13.353,87.15858444]
[1672948219231,17.0,13.358,13.353,145.50858863]
[1672948219430,4.961045,13.359,13.353,145.50858863]
[1672948220487,4.961045,13.359,13.353,201.70858863]
[1672948220807,4.961045,13.359,13.353,145.50858863]
[1672948221833,17.0,13.358,13.353,145.50858863]
[1672948225540,17.0,13.358,13.353,125.50858863]
[1672948244712,17.0,13.358,13.353,163.90117675]
[1672948245325,16.0,13.358,13.353,163.90117675]
[1672948248184,16.0,13.358,13.353,105.55117256]
[1672948251133,4.961045,13.359,13.353,105.55117256]
[1672948252595,17.0,13.358,13.353,105.55117256]
[1672948256382,4.961045,13.359,13.353,105.55117256]
[1672948257951,17.0,13.358,13.353,105.55117256]
[1672948265736,73.18,13.358,13.35,18.95]
[1672948265929,20.0,13.357,13.35,18.95]
[1672948266132,17.0,13.356,13.35,18.95]
[1672948267712,17.0,13.356,13.346,56.23]
[1672948267923,17.0,13.356,13.346,20.0]
[1672948268239,17.0,13.356,13.347,56.23]
[1672948268462,17.0,13.357,13.347,56.23]
[1672948270039,17.0,13.357,13.344,76.61305854]
[1672948270040,17.0,13.357,13.346,20.0]
[1672948270234,17.0,13.357,13.347,56.23]
[1672948271302,17.0,13.357,13.346,20.0]
[1672948271612,17.0,13.357,13.347,56.23]
[1672948273194,17.0,13.357,13.348,20.0]
[1672948273406,17.0,13.357,13.348,76.22]
[1672948273593,17.0,13.357,13.348,56.22]
[1672948275194,56.18,13.358,13.35,19.09]
[1672948275410,4.961045,13.359,13.35,19.09]
[1672948275597,4.961045,13.359,13.351,19.2229883]
[1672948276033,4.961045,13.359,13.35,19.09]
[1672948276233,4.961045,13.359,13.35,38.3129883]
[1672948276456,17.0,13.358,13.35,19.09]
[1672948276661,73.18,13.358,13.35,19.09]
[1672948276871,17.0,13.358,13.35,19.09]
[1672948289072,17.0,13.358,13.35,75.31]
[1672948290334,17.0,13.358,13.35,19.09]
[1672948292943,73.18,13.358,13.35,19.09]
[1672948293477,17.0,13.358,13.35,19.09]
[1672948294942,73.18,13.358,13.35,19.09]
[1672948296843,17.0,13.358,13.35,19.09]
[1672948299035,73.18,13.358,13.35,19.09]
[1672948300609,4.961045,13.359,13.35,19.09]
[1672948300937,4.961045,13.359,13.35,162.76385932]
[1672948301354,4.961045,13.359,13.352,20.0]
[1672948302104,4.961045,13.359,13.351,20.0]
[1672948302412,17.0,13.358,13.351,20.0]
[1672948303253,4.961045,13.359,13.351,39.2229883]
[1672948303459,4.961045,13.359,13.351,95.4329883]
[1672948304304,108.1937,13.363,13.351,95.4329883]
[1672948304305,116.0261,13.37,13.353,96.61305854]
[1672948304514,116.0261,13.37,13.361,20.0]
[1672948304932,29.93791,13.363,13.361,79.70481709]
[1672948305146,47.6807294,13.365,13.362,74.50593572]
[1672948305354,56.12,13.372,13.363,20.0]
[1672948305566,56.13,13.371,13.363,20.0]
[1672948305768,56.12,13.373,13.363,20.0]
[1672948305969,29.934569,13.367,13.363,84.85274736]
[1672948308102,17.0,13.366,13.363,84.85274736]
[1672948308615,29.934569,13.367,13.361,20.0]
[1672948309442,29.934569,13.367,13.36,147.96488375]
[1672948309654,29.934569,13.367,13.36,19.24]
[1672948309861,17.0,13.366,13.36,19.24]
[1672948311139,17.0,13.366,13.36,18.85832]
[1672948315446,73.15,13.366,13.36,18.85832]
[1672948315879,56.15,13.366,13.36,18.85832]
[1672948316925,17.0,13.365,13.36,18.85832]
[1672948317659,17.0,13.366,13.36,18.85832]
[1672948319974,29.934569,13.367,13.36,18.85832]
[1672948320285,29.934569,13.367,13.361,19.2229883]
[1672948321216,29.934569,13.367,13.36,18.85832]
[1672948321753,86.084569,13.367,13.36,18.85832]
[1672948321970,20.0,13.365,13.36,18.85832]
[1672948322161,17.0,13.364,13.36,18.85832]
[1672948322370,17.0,13.364,13.356,165.1405]
[1672948323549,29.934569,13.367,13.356,217.28538375]
[1672948323734,29.934569,13.367,13.36,19.09]
[1672948323946,56.15,13.366,13.36,19.09]
[1672948324267,29.934569,13.367,13.36,19.09]
[1672948325031,17.0,13.366,13.36,19.09]
[1672948325244,73.15,13.366,13.36,19.09]
[1672948326269,73.15,13.366,13.343,127.37249975]
[1672948326270,20.0,13.365,13.352,56.21]
[1672948326491,56.16,13.364,13.351,56.21]
[1672948326811,20.0,13.363,13.351,56.21]
[1672948327015,56.17,13.362,13.351,56.21]
[1672948327230,20.0,13.361,13.35,210.6023]
[1672948327448,56.17,13.36,13.35,210.6023]
[1672948328377,17.0,13.359,13.35,210.6023]
[1672948330057,37.0,13.359,13.35,210.6023]
[1672948330585,17.0,13.359,13.35,210.6023]
[1672948332804,138.5939,13.363,13.35,210.6023]
[1672948332805,152.80230658,13.403,13.371,192.05003446]
[1672948333017,3.51e-05,13.384,13.372,76.12]
[1672948333222,3.51e-05,13.384,13.373,20.0]
[1672948333420,3.51e-05,13.384,13.374,76.12]
[1672948333867,3.51e-05,13.384,13.375,20.0]
[1672948334054,3.51e-05,13.384,13.376,56.11]
[1672948334265,3.51e-05,13.384,13.377,20.0]
[1672948334475,3.51e-05,13.384,13.379,20.0]
[1672948334690,3.51e-05,13.384,13.378,56.1]
[1672948334905,3.51e-05,13.384,13.378,122.77320326]
[1672948335115,20.0,13.382,13.37,19.0]
[1672948335437,20.0,13.38,13.37,19.0]
[1672948335650,56.09,13.379,13.37,19.0]
[1672948336062,17.0,13.378,13.37,19.0]
[1672948336275,17.0,13.378,13.37,95.74]
[1672948336486,17.0,13.378,13.371,20.0]
[1672948337412,17.0,13.378,13.37,95.74]
[1672948337644,73.1,13.378,13.37,95.74]
[1672948337856,56.08,13.382,13.371,20.0]
[1672948338074,56.08,13.383,13.371,40.46571702]
[1672948338383,56.08,13.383,13.373,20.0]
[1672948341548,56.08,13.383,13.373,19.0]
[1672948341850,3.51e-05,13.384,13.374,56.12]
[1672948342063,3.51e-05,13.384,13.375,40.0]
[1672948342272,3.51e-05,13.384,13.376,56.11]
[1672948342464,3.51e-05,13.384,13.377,20.0]
[1672948342673,3.51e-05,13.384,13.379,20.0]
[1672948349105,16.0000351,13.385,13.379,20.0]
[1672948349934,50.4910306,13.386,13.379,20.0]
[1672948350247,50.4910306,13.386,13.381,20.0]
[1672948351917,50.4910306,13.386,13.381,40.46571702]
[1672948352670,50.4910306,13.386,13.381,20.0]
[1672948352884,50.4910306,13.386,13.381,96.55571702]
[1672948353079,50.4910306,13.386,13.381,40.46571702]
[1672948353288,50.4910306,13.386,13.381,91.58627568]
[1672948354337,50.4910306,13.386,13.381,145.14531024]
[1672948354543,50.4910306,13.386,13.383,20.0]
[1672948354759,0.0010306,13.386,13.383,20.0]
[1672948354975,0.0010306,13.386,13.384,20.46571702]
[1672948355191,0.0010306,13.386,13.383,20.0]
[1672948355401,0.0010306,13.386,13.382,20.0]
[1672948355935,0.0010306,13.386,13.38,190.2]
[1672948356458,0.0010306,13.386,13.38,38.02]
[1672948356459,17.0010306,13.386,13.38,38.02]
[1672948358749,56.07,13.385,13.38,38.02]
[1672948358955,17.0,13.384,13.375,76.11]
[1672948359166,17.0,13.384,13.375,56.11]
[1672948359399,17.0,13.384,13.374,76.12]
[1672948360640,17.0,13.384,13.374,96.58571702]
[1672948362758,17.0,13.384,13.374,76.12]
[1672948363367,37.0,13.384,13.374,56.12]
[1672948363583,56.08,13.383,13.371,56.13]
[1672948363827,56.08,13.383,13.37,210.63571702]
[1672948363828,37.0,13.382,13.37,210.63571702]
[1672948364041,56.09,13.381,13.37,190.17]
[1672948364225,37.0,13.38,13.37,190.17]
[1672948364440,56.09,13.379,13.37,190.17]
[1672948364655,17.0,13.378,13.37,190.17]
[1672948365615,17.0,13.379,13.37,190.17]
[1672948366224,17.0,13.379,13.371,20.0]
[1672948366447,112.1821,13.381,13.371,76.13]
[1672948366646,56.08,13.383,13.372,20.46571702]
[1672948366856,56.08,13.383,13.371,20.0]
[1672948367071,20.0,13.382,13.37,190.17]
[1672948367282,56.09,13.381,13.37,190.17]
[1672948367928,37.0,13.38,13.37,190.17]
[1672948368140,56.09,13.379,13.37,190.17]
[1672948368358,17.0,13.378,13.37,190.17]
[1672948371296,17.0,13.378,13.37,38.02]
[1672948372329,73.09,13.379,13.37,38.02]
[1672948372533,20.0,13.378,13.37,38.02]
[1672948372746,17.0,13.377,13.37,38.02]
[1672948372957,73.1,13.377,13.37,38.02]
[1672948373487,17.0,13.377,13.37,38.02]
[1672948380460,17.0,13.377,13.365,173.05842419]
[1672948380461,98.52737149,13.376,13.365,173.05842419]
[1672948380862,20.0,13.374,13.365,173.05842419]
[1672948381189,20.0,13.378,13.365,173.05842419]
[1672948381190,22.41737149,13.373,13.365,23.05842419]
[1672948381387,38.2,13.39,13.367,20.0]
[1672948381607,38.2,13.39,13.37,37.83]
[1672948382143,20.0,13.377,13.37,37.83]
[1672948382560,56.11,13.376,13.37,37.83]
[1672948383078,17.0,13.375,13.37,25.41]
[1672948383296,56.11,13.376,13.37,25.41]
[1672948383486,25.41,13.39,13.37,25.41]
[1672948383487,56.1,13.378,13.37,25.41]
[1672948384549,17.0,13.377,13.37,25.41]
[1672948388238,29.888991,13.388,13.371,56.13]
[1672948388432,115.9677,13.388,13.38,25.22]
[1672948388858,56.07,13.385,13.38,25.22]
[1672948389068,56.07,13.385,13.376,20.46571702]
[1672948390124,56.06,13.387,13.377,20.0]
[1672948390333,56.06,13.387,13.38,25.35]
[1672948390538,56.07,13.385,13.38,25.35]
[1672948390769,56.07,13.385,13.377,40.46571702]
[1672948390955,56.06,13.387,13.377,40.46571702]
[1672948391160,56.06,13.387,13.381,20.0]
[1672948392762,56.07,13.385,13.38,25.41]
[1672948392965,17.0,13.384,13.377,40.46571702]
[1672948393176,17.0,13.384,13.377,96.56571702]
[1672948394000,56.06,13.387,13.377,56.1]
[1672948394222,56.06,13.387,13.38,25.35]
[1672948395393,17.0010306,13.386,13.38,25.35]
[1672948399995,0.0010306,13.386,13.38,25.35]
[1672948400938,0.0010306,13.386,13.381,20.0]
[1672948401388,17.0010306,13.386,13.381,20.46571702]
[1672948401698,17.0010306,13.386,13.38,25.35]
[1672948402091,0.0010306,13.386,13.381,40.46571702]
[1672948403160,85.934405,13.391,13.382,20.46571702]
[1672948403352,29.894405,13.391,13.383,20.0]
[1672948403784,29.894405,13.391,13.383,40.46571702]
[1672948404206,29.894405,13.391,13.385,20.0]
[1672948404408,29.894405,13.391,13.387,20.0]
[1672948404820,29.894405,13.391,13.384,56.07]
[1672948405063,29.894405,13.391,13.383,101.23255824]
[1672948405243,29.894405,13.391,13.384,20.46571702]
[1672948405476,29.894405,13.391,13.385,20.0]
[1672948406741,17.0,13.39,13.385,20.0]
[1672948406945,17.0,13.39,13.384,56.07]
[1672948407450,17.0,13.39,13.383,56.08]
[1672948407662,17.0,13.39,13.384,20.0]
[1672948408193,29.894405,13.391,13.384,20.0]
[1672948408194,29.894405,13.391,13.384,40.46571702]
[1672948409368,29.894405,13.391,13.386,20.0]
[1672948409557,29.894405,13.391,13.388,20.0]
[1672948409767,29.894405,13.391,13.389,56.05]
[1672948410087,29.894405,13.391,13.388,96.52571702]
[1672948410294,29.894405,13.391,13.388,40.46571702]
[1672948410925,56.01,13.4,13.388,40.46571702]
[1672948411355,60.3026194,13.415,13.389,20.0]
[1672948411674,60.3026194,13.415,13.39,203.22]
[1672948411675,131.9018,13.411,13.39,203.22]
[1672948412076,20.0,13.409,13.392,20.0]
[1672948412289,20.0,13.407,13.394,20.0]
[1672948412499,55.98,13.406,13.395,56.03]
[1672948412724,55.97,13.408,13.395,56.03]
[1672948413057,20.0,13.407,13.395,56.03]
[1672948413256,55.98,13.406,13.395,56.03]
[1672948413873,55.97,13.408,13.396,20.46571702]
[1672948414088,55.97,13.408,13.395,56.03]
[1672948414409,20.0,13.407,13.395,56.03]
[1672948414616,55.98,13.406,13.395,56.03]
[1672948415043,17.0,13.4,13.395,56.03]
[1672948416084,17.0,13.4,13.39,25.3]
[1672948416302,20.0,13.398,13.386,20.0]
[1672948416513,73.02,13.397,13.386,20.0]
[1672948416832,73.02,13.397,13.387,56.06]
[1672948417056,73.02,13.397,13.386,40.46571702]
[1672948418725,56.01,13.399,13.391,20.0]
[1672948418938,173.1905,13.4,13.391,76.04]
[1672948419124,173.1905,13.4,13.392,20.46571702]
[1672948419774,117.1805,13.4,13.392,20.46571702]
[1672948420191,17.0,13.399,13.391,56.04]
[1672948420515,73.01,13.399,13.39,25.35]
[1672948421035,56.01,13.399,13.391,20.0]
[1672948421250,117.1805,13.4,13.391,20.46571702]
[1672948421562,56.01,13.399,13.39,25.35]
[1672948422503,17.0,13.398,13.39,25.35]
[1672948422721,56.02,13.397,13.39,25.35]
[1672948422918,17.0,13.396,13.39,25.35]
[1672948423247,56.03,13.395,13.385,56.07]
[1672948423562,17.0,13.394,13.385,20.0]
[1672948423756,17.0,13.394,13.385,40.46571702]
[1672948423966,17.0,13.395,13.385,40.46571702]
[1672948424196,17.0,13.395,13.385,20.46571702]
[1672948424408,56.03,13.394,13.385,20.46571702]
[1672948424618,17.0,13.393,13.385,20.46571702]
[1672948425775,17.0,13.393,13.386,20.0]
[1672948426087,17.0,13.393,13.386,40.46571702]
[1672948426714,56.02,13.397,13.386,40.46571702]
[1672948426906,118.0057,13.398,13.39,25.42]
[1672948427116,118.0057,13.398,13.392,20.0]
[1672948427785,118.0057,13.398,13.391,56.04]
[1672948428282,118.0057,13.398,13.391,76.50571702]
[1672948429949,117.1805,13.4,13.391,76.50571702]
[1672948430375,55.97,13.408,13.392,20.0]
[1672948430713,20.0,13.408,13.394,20.0]
[1672948430909,55.98,13.407,13.395,56.03]
[1672948431233,20.0,13.406,13.394,76.49571702]
[1672948431419,55.99,13.405,13.391,56.04]
[1672948431635,56.01,13.4,13.39,25.28]
[1672948432050,17.0,13.399,13.39,25.28]
[1672948432261,56.02,13.398,13.39,25.28]
[1672948432477,17.0,13.397,13.39,25.28]
[1672948433529,56.02,13.396,13.386,76.53571702]
[1672948433741,17.0,13.395,13.386,76.53571702]
[1672948434160,17.0,13.396,13.387,20.0]
[1672948434699,17.0,13.396,13.388,76.52571702]
[1672948434915,17.0,13.396,13.388,20.46571702]
[1672948436805,37.0,13.396,13.386,56.07]
[1672948436999,37.0,13.396,13.383,76.54571702]
[1672948437215,17.0,13.396,13.385,20.0]
[1672948437540,17.0,13.396,13.387,20.0]
[1672948438155,17.0,13.396,13.386,56.07]
[1672948438694,56.03,13.395,13.385,20.0]
[1672948438878,17.0,13.394,13.385,20.0]
[1672948439308,17.0,13.395,13.385,20.0]
[1672948439519,56.03,13.394,13.385,20.0]
[1672948439725,17.0,13.393,13.385,20.0]
[1672948440059,17.0,13.393,13.386,56.07]
[1672948440253,56.02,13.397,13.387,20.0]
[1672948440681,56.02,13.397,13.387,20.46571702]
[1672948441019,56.02,13.397,13.388,20.0]
[1672948441960,17.0,13.396,13.388,20.0]
[1672948442479,17.0,13.396,13.387,40.46571702]
[1672948442701,17.0,13.396,13.387,20.46571702]
[1672948443004,56.03,13.395,13.385,76.07]
[1672948443219,17.0,13.394,13.385,76.07]
[1672948443407,29.860334,13.41,13.386,20.46571702]
[1672948443617,112.274,13.409,13.391,20.0]
[1672948443827,112.274,13.409,13.392,76.04]
[1672948444039,55.97,13.408,13.393,20.0]
[1672948444273,55.97,13.408,13.394,76.03]
[1672948444458,20.0,13.407,13.394,96.49571702]
[1672948444666,112.274,13.409,13.394,96.49571702]
[1672948444667,55.99,13.404,13.395,20.0]
[1672948445313,55.99,13.404,13.396,20.46571702]
[1672948445531,55.97,13.408,13.396,20.46571702]
[1672948445928,55.97,13.408,13.396,76.48571702]
[1672948446380,55.97,13.408,13.397,20.46571702]
[1672948446564,55.97,13.408,13.398,20.0]
[1672948446779,55.97,13.408,13.397,40.46571702]
[1672948446989,55.97,13.408,13.397,20.0]
[1672948448139,55.97,13.408,13.397,40.46571702]
[1672948448998,55.97,13.408,13.397,20.0]
[1672948449309,55.97,13.408,13.397,75.33015456]
[1672948449498,55.97,13.408,13.397,95.79587158]
[1672948449716,8.04e-05,13.401,13.397,95.79587158]
[1672948449920,8.04e-05,13.401,13.397,146.90249159]
[1672948450153,8.04e-05,13.401,13.398,56.02]
[1672948450367,8.04e-05,13.401,13.399,20.0]
[1672948450693,8.04e-05,13.401,13.4,55.33015456]
[1672948451004,8.04e-05,13.401,13.4,75.79587158]
[1672948451227,8.04e-05,13.401,13.4,55.33015456]
[1672948451839,8.04e-05,13.401,13.4,126.90249159]
[1672948452371,8.04e-05,13.401,13.4,106.43677457]
[1672948452991,8.04e-05,13.401,13.4,126.90249159]
[1672948453640,8.04e-05,13.401,13.4,106.43677457]
[1672948454479,0.0026194,13.415,13.408,55.9700804]
[1672948454794,50.4910306,13.436,13.415,226.0]
[1672948454993,50.4910306,13.436,13.424,113.46365522]
[1672948454994,12.292774,13.436,13.424,113.46365522]
[1672948455205,11.9694804,13.45,13.439,50.4910306]
[1672948455427,398.98269623,13.455,13.448,55.6696913]
[1672948455622,398.98269623,13.455,13.45,37.82]
[1672948455832,20.0,13.453,13.44,37.71]
[1672948456046,85.540675,13.452,13.44,37.71]
[1672948456669,85.540675,13.452,13.435,65.42075553]
[1672948456670,37.92,13.45,13.435,65.42075553]
[1672948456896,55.8,13.449,13.42,189.81]
[1672948457208,20.0,13.439,13.424,70.44742219]
[1672948457525,55.85,13.438,13.43,189.6]
[1672948457739,55.81,13.447,13.431,20.0]
[1672948458045,55.81,13.448,13.432,55.87]
[1672948458263,55.81,13.448,13.433,20.0]
[1672948458457,55.81,13.448,13.44,37.92]
[1672948458670,55.81,13.448,13.441,20.0]
[1672948458993,55.79,13.451,13.441,20.0]
[1672948459405,55.79,13.451,13.442,124.9124842]
[1672948459623,55.79,13.451,13.441,20.0]
[1672948460671,55.79,13.451,13.441,40.46571702]